fUSD/lending_fUSD_20250321
["ID","MTS","AMOUNT","RATE_DAILY","PERIOD"]
[356510812,1742590783628,-500.0,0.00046575,120]
[356510813,1742590783651,-500.0,0.00046575,120]
[356510814,1742590783676,-508.44741449,0.00046575,120]
[356510815,1742590783700,-832.27,0.00046575,120]
[356510816,1742590783725,-776.34,0.00046575,120]
[356510817,1742590783750,-500.0,0.00046575,120]
[356510818,1742590783774,-500.0,0.00046575,120]
[356510819,1742590783799,-500.0,0.00046575,120]
[356510820,1742590783823,-500.0,0.00046575,120]
[356510821,1742590783846,-500.0,0.00046575,120]
[356510822,1742590783870,-500.0,0.00046575,120]
[356510823,1742590783894,-500.0,0.00046575,120]
[356510824,1742590783917,-500.0,0.00046575,120]
[356510825,1742590783942,-500.0,0.00046575,120]
[356510826,1742590783965,-500.0,0.00046575,120]
[356510827,1742590783990,-553.28,0.00046575,120]
[356510828,1742590784016,-500.0,0.00046575,120]
[356510829,1742590784040,-500.0,0.00046575,120]
[356510830,1742590784064,-500.0,0.00046575,120]
[356510831,1742590784264,-500.0,0.00046575,120]
[356510832,1742590784289,-500.0,0.00046575,120]
[356510833,1742590784314,-706.27,0.00046575,120]
[356510834,1742590784338,-500.0,0.00046575,120]
[356510835,1742590784363,-500.0,0.00046575,120]
[356510836,1742590784388,-500.0,0.00046575,120]
[356510837,1742590784411,-500.0,0.00046575,120]
[356510838,1742590784436,-500.0,0.00046575,120]
[356510839,1742590784461,-509.95776222,0.00046575,120]
[356510840,1742590784487,-500.0,0.00046575,120]
[356510841,1742590784513,-956.18,0.00046575,120]
[356510842,1742590784539,-200.28694412,0.00046575,120]
[356510843,1742590784563,-500.0,0.00046575,120]
[356510844,1742590784587,-500.0,0.00046575,120]
[356510845,1742590784611,-500.0,0.00046575,120]
[356510846,1742590784635,-512.96922462,0.00046575,120]
[356510847,1742590784658,-500.0,0.00046575,120]
[356510848,1742590784683,-722.07,0.00046575,120]
[356510849,1742590784706,-500.0,0.00046575,120]
[356510850,1742590784730,-500.0,0.00046575,120]
[356510851,1742590784757,-500.0,0.00046575,120]
[356510852,1742590784782,-500.0,0.00046575,120]
[356510853,1742590784806,-500.0,0.00046575,120]
[356510854,1742590784830,-802.32,0.00046575,120]
[356510855,1742590784853,-500.0,0.00046575,120]
[356510856,1742590784878,-500.0,0.00046575,120]
[356510857,1742590784902,-500.0,0.00046575,120]
[356510858,1742590784925,-500.0,0.00046575,120]
[356510859,1742590784950,-500.0,0.00046575,120]
[356510860,1742590784974,-500.0,0.00046575,120]
[356510861,1742590784998,-500.0,0.00046575,120]
[356510862,1742590785023,-500.0,0.00046575,120]
[356510863,1742590785048,-500.0,0.00046575,120]
[356510864,1742590785071,-500.0,0.00046575,120]
[356510865,1742590785096,-500.0,0.00046575,120]
[356510866,1742590785120,-500.0,0.00046575,120]
[356510867,1742590785144,-500.0,0.00046575,120]
[356510868,1742590785170,-500.0,0.00046575,120]
[356510869,1742590785194,-500.0,0.00046575,120]
[356510870,1742590785218,-500.0,0.00046575,120]
[356510871,1742590785242,-500.0,0.00046575,120]
[356510872,1742590785266,-500.0,0.00046575,120]
[356510873,1742590785291,-500.0,0.00046575,120]
[356510874,1742590785316,-500.0,0.00046575,120]
[356510875,1742590785340,-376.99146038,0.00046575,120]
[356510876,1742590785365,-508.87555424,0.00046575,120]
[356510877,1742590785389,-574.54,0.00046575,120]
[356510878,1742590785414,-440.23698317,0.00046575,120]
[356510879,1742590785439,-625.98,0.00046575,120]
[356510880,1742590785463,-500.0,0.00046575,120]
[356510881,1742590785487,-500.0,0.00046575,120]
[356510882,1742590785511,-500.0,0.00046575,120]
[356510883,1742590785536,-500.0,0.00046575,120]
[356510884,1742590785561,-497.17085285,0.00046575,120]
[356510885,1742590785586,-500.0,0.00046575,120]
[356510886,1742590785610,-500.0,0.00046575,120]
[356510887,1742590785635,-1500.0,0.00046575,120]
[356510888,1742590785659,-639.63324241,0.00046575,120]
[356510889,1742590785684,-500.0,0.00046575,120]
[356510890,1742590785707,-500.0,0.00046575,120]
[356510891,1742590785730,-500.0,0.00046575,120]
[356510892,1742590785754,-500.0,0.00046575,120]
[356510893,1742590785777,-500.0,0.00046575,120]
[356510894,1742590785801,-276.66480394,0.00046575,120]
[356510895,1742590785826,-500.0,0.00046575,120]
[356510896,1742590785850,-500.0,0.00046575,120]
[356510897,1742590785875,-598.11,0.00046575,120]
[356510898,1742590785899,-500.0,0.00046575,120]
[356510899,1742590785923,-500.0,0.00046575,120]
[356510900,1742590785947,-500.0,0.00046575,120]
[356510901,1742590785971,-2418.17,0.00046575,120]
[356510902,1742590785995,-500.0,0.00046575,120]
[356510903,1742590786018,-500.0,0.00046575,120]
[356510904,1742590786042,-500.0,0.00046575,120]
[356510905,1742590786066,-500.0,0.00046575,120]
[356510906,1742590786092,-500.0,0.00046575,120]
[356510907,1742590786116,-500.0,0.00046575,120]
[356510908,1742590786141,-161.55856024,0.00046575,120]
[356510909,1742590786166,-500.0,0.00046575,120]
[356510910,1742590786191,-500.0,0.00046575,120]
[356510911,1742590786215,-500.0,0.00046575,120]
[356510912,1742590786239,-562.49,0.00046575,120]
[356510913,1742590786264,-500.0,0.00046575,120]
[356510914,1742590786288,-677.48,0.00046575,120]
[356510915,1742590786311,-528.48814408,0.00046575,120]
[356510916,1742590786334,-276.35030022,0.00046575,120]
[356510917,1742590786359,-500.0,0.00046575,120]
[356510918,1742590786383,-500.0,0.00046575,120]
[356510919,1742590786406,-500.0,0.00046575,120]
[356510920,1742590786430,-2780.65,0.00046575,120]
[356510921,1742590786453,-500.0,0.00046575,120]
[356510922,1742590786478,-500.0,0.00046575,120]
[356510923,1742590786502,-500.0,0.00046575,120]
[356510924,1742590786524,-500.0,0.00046575,120]
[356510925,1742590786547,-500.0,0.00046575,120]
[356510926,1742590786571,-500.0,0.00046575,120]
[356510927,1742590786594,-500.0,0.00046575,120]
[356510928,1742590786616,-500.0,0.00046575,120]
[356510929,1742590786638,-500.0,0.00046575,120]
[356510930,1742590786661,-500.0,0.00046575,120]
[356510931,1742590786684,-533.33957498,0.00046575,120]
[356510932,1742590786707,-500.0,0.00046575,120]
[356510933,1742590786731,-500.0,0.00046575,120]
[356510934,1742590786754,-500.0,0.00046575,120]
[356510935,1742590786777,-318.62777788,0.00046575,120]
[356510936,1742590786984,-500.0,0.00046575,120]
[356510937,1742590787008,-500.0,0.00046575,120]
[356510938,1742590787031,-500.0,0.00046575,120]
[356510939,1742590787054,-500.0,0.00046575,120]
[356510940,1742590787078,-500.0,0.00046575,120]
[356510941,1742590787104,-500.0,0.00046575,120]
[356510942,1742590787126,-500.0,0.00046575,120]
[356510943,1742590787149,-500.0,0.00046575,120]
[356510944,1742590787174,-500.0,0.00046575,120]
[356510945,1742590787197,-500.93,0.00046575,120]
[356510946,1742590787220,-500.0,0.00046575,120]
[356510947,1742590787244,-671.31,0.00046575,120]
[356510948,1742590787268,-500.0,0.00046575,120]
[356510949,1742590787292,-671.31,0.00046575,120]
[356510950,1742590787316,-671.31,0.00046575,120]
[356510951,1742590787342,-500.0,0.00046575,120]
[356510952,1742590787367,-500.0,0.00046575,120]
[356510953,1742590787390,-671.31,0.00046575,120]
[356510954,1742590787414,-500.0,0.00046575,120]
[356510955,1742590787438,-500.0,0.00046575,120]
[356510956,1742590787462,-1087.77,0.00046575,120]
[356510957,1742590787488,-500.0,0.00046575,120]
[356510958,1742590787512,-500.0,0.00046575,120]
[356510959,1742590787538,-500.0,0.00046575,120]
[356510960,1742590787563,-500.0,0.00046575,120]
[356510961,1742590787588,-789.42,0.00046575,120]
[356510962,1742590787612,-508.32165361,0.00046575,120]
[356510963,1742590787637,-500.0,0.00046575,120]
[356510964,1742590787661,-500.0,0.00046575,120]
[356510965,1742590787686,-500.0,0.00046575,120]
[356510966,1742590787709,-500.0,0.00046575,120]
[356510967,1742590787734,-500.0,0.00046575,120]
[356510968,1742590787759,-500.0,0.00046575,120]
[356510969,1742590787783,-500.0,0.00046575,120]
[356510970,1742590787806,-500.0,0.00046575,120]
[356510971,1742590787830,-500.0,0.00046575,120]
[356510972,1742590787855,-500.0,0.00046575,120]
[356510973,1742590787879,-500.0,0.00046575,120]
[356510974,1742590787904,-500.0,0.00046575,120]
[356510975,1742590787928,-500.0,0.00046575,120]
[356510976,1742590787953,-1095.4,0.00046575,120]
[356510977,1742590787979,-500.0,0.00046575,120]
[356510978,1742590788004,-500.0,0.00046575,120]
[356510979,1742590788029,-740.49,0.00046575,120]
[356510980,1742590788054,-500.0,0.00046575,120]
[356510981,1742590788080,-917.49,0.00046575,120]
[356510982,1742590788108,-500.0,0.00046575,120]
[356510983,1742590788134,-500.0,0.00046575,120]
[356510984,1742590788162,-500.0,0.00046575,120]
[356510985,1742590788188,-500.0,0.00046575,120]
[356510986,1742590788213,-525.2,0.00046575,120]
[356510987,1742590788238,-1095.6,0.00046575,120]
[356510988,1742590788263,-500.0,0.00046575,120]
[356510989,1742590788288,-596.35,0.00046575,120]
[356510990,1742590788312,-500.0,0.00046575,120]
[356510991,1742590788338,-723.24,0.00046575,120]
[356510992,1742590788362,-500.0,0.00046575,120]
[356510993,1742590788387,-500.0,0.00046575,120]
[356510994,1742590788411,-500.0,0.00046575,120]
[356510995,1742590788435,-500.0,0.00046575,120]
[356510996,1742590788460,-500.0,0.00046575,120]
[356510997,1742590788485,-500.0,0.00046575,120]
[356510998,1742590788508,-500.0,0.00046575,120]
[356510999,1742590788532,-500.0,0.00046575,120]
[356511000,1742590788556,-500.0,0.00046575,120]
[356511001,1742590788581,-500.0,0.00046575,120]
[356511002,1742590788605,-397.4791001,0.00046575,120]
[356511003,1742590788630,-500.0,0.00046575,120]
[356511004,1742590788654,-500.0,0.00046575,120]
[356511005,1742590788678,-500.0,0.00046575,120]
[356511006,1742590788703,-500.0,0.00046575,120]
[356511007,1742590788727,-500.0,0.00046575,120]
[356511008,1742590788752,-500.0,0.00046575,120]
[356511009,1742590788776,-2533.5,0.00046575,120]
[356511010,1742590788805,-2533.5,0.00046575,120]
[356511011,1742590788831,-2533.5,0.00046575,120]
[356511012,1742590788856,-2533.5,0.00046575,120]
[356511013,1742590788882,-2533.5,0.00046575,120]
[356511014,1742590788907,-500.0,0.00046575,120]
[356511015,1742590788933,-500.0,0.00046575,120]
[356511016,1742590788957,-500.0,0.00046575,120]
[356511017,1742590788983,-500.0,0.00046575,120]
[356511018,1742590789008,-703.07,0.00046575,120]
[356511019,1742590789034,-500.0,0.00046575,120]
[356511020,1742590789060,-500.0,0.00046575,120]
[356511021,1742590789090,-500.0,0.00046575,120]
[356511022,1742590789123,-922.35,0.00046575,120]
[356511023,1742590789150,-876.65,0.00046575,120]
[356511024,1742590789175,-500.0,0.00046575,120]
[356511025,1742590789201,-500.0,0.00046575,120]
[356511026,1742590789231,-500.0,0.00046575,120]
[356511027,1742590789258,-500.0,0.00046575,120]
[356511028,1742590789283,-567.06,0.00046575,120]
[356511029,1742590789308,-500.0,0.00046575,120]
[356511030,1742590789334,-500.0,0.00046575,120]
[356511031,1742590789359,-500.0,0.00046575,120]
[356511032,1742590789385,-500.0,0.00046575,120]
[356511033,1742590789410,-1451.02,0.00046575,120]
[356511034,1742590789435,-500.0,0.00046575,120]
[356511035,1742590789459,-1047.34,0.00046575,120]
[356511036,1742590789483,-503.21928599,0.00046575,120]
[356511037,1742590789508,-500.0,0.00046575,120]
[356511038,1742590789532,-500.0,0.00046575,120]
[356511039,1742590789556,-500.0,0.00046575,120]
[356511040,1742590789580,-500.0,0.00046575,120]
[356511041,1742590789604,-500.0,0.00046575,120]
[356511042,1742590789813,-500.0,0.00046575,120]
[356511043,1742590789837,-500.0,0.00046575,120]
[356511044,1742590789861,-500.0,0.00046575,120]
[356511045,1742590789885,-524.14,0.00046575,120]
[356511046,1742590789923,-500.0,0.00046575,120]
[356511047,1742590789950,-500.0,0.00046575,120]
[356511048,1742590789976,-500.0,0.00046575,120]
[356511049,1742590790002,-500.0,0.00046575,120]
[356511050,1742590790028,-500.0,0.00046575,120]
[356511051,1742590790056,-500.0,0.00046575,120]
[356511052,1742590790084,-500.0,0.00046575,120]
[356511053,1742590790110,-500.0,0.00046575,120]
[356511054,1742590790136,-500.0,0.00046575,120]
[356511055,1742590790163,-500.0,0.00046575,120]
[356511056,1742590790189,-500.0,0.00046575,120]
[356511057,1742590790215,-637.39,0.00046575,120]
[356511058,1742590790240,-500.0,0.00046575,120]
[356511059,1742590790265,-500.0,0.00046575,120]
[356511060,1742590790290,-500.0,0.00046575,120]
[356511061,1742590790315,-500.0,0.00046575,120]
[356511062,1742590790340,-500.0,0.00046575,120]
[356511063,1742590790365,-500.0,0.00046575,120]
[356511064,1742590790390,-500.0,0.00046575,120]
[356511065,1742590790415,-652.68,0.00046575,120]
[356511066,1742590790441,-500.0,0.00046575,120]
[356511067,1742590790466,-500.0,0.00046575,120]
[356511068,1742590790496,-500.0,0.00046575,120]
[356511069,1742590790521,-528.07872508,0.00046575,120]
[356511070,1742590790548,-500.0,0.00046575,120]
[356511071,1742590790573,-506.57164017,0.00046575,120]
[356511072,1742590790599,-500.0,0.00046575,120]
[356511073,1742590790624,-500.0,0.00046575,120]
[356511074,1742590790650,-500.0,0.00046575,120]
[356511075,1742590790675,-500.0,0.00046575,120]
[356511076,1742590790700,-500.0,0.00046575,120]
[356511077,1742590790725,-500.0,0.00046575,120]
[356511078,1742590790751,-500.0,0.00046575,120]
[356511079,1742590790778,-500.0,0.00046575,120]
[356511080,1742590790804,-500.0,0.00046575,120]
[356511081,1742590790831,-500.0,0.00046575,120]
[356511082,1742590790857,-878.74,0.00046575,120]
[356511083,1742590790886,-1563.26,0.00046575,120]
[356511084,1742590790912,-500.0,0.00046575,120]
[356511085,1742590790938,-500.0,0.00046575,120]
[356511086,1742590790964,-500.0,0.00046575,120]
[356511087,1742590790990,-500.0,0.00046575,120]
[356511088,1742590791015,-500.0,0.00046575,120]
[356511089,1742590791040,-500.0,0.00046575,120]
[356511090,1742590791066,-500.0,0.00046575,120]
[356511091,1742590791094,-1058.149737,0.00046575,120]
[356511092,1742590791119,-500.0,0.00046575,120]
[356511093,1742590791146,-811.02,0.00046575,120]
[356511094,1742590791171,-500.0,0.00046575,120]
[356511095,1742590791197,-500.0,0.00046575,120]
[356511096,1742590791222,-500.0,0.00046575,120]
[356511097,1742590791248,-500.0,0.00046575,120]
[356511098,1742590791274,-500.0,0.00046575,120]
[356511099,1742590791299,-500.0,0.00046575,120]
[356511100,1742590791325,-500.0,0.00046575,120]
[356511101,1742590791351,-783.5,0.00046575,120]
[356511102,1742590791376,-589.07,0.00046575,120]
[356511103,1742590791401,-500.0,0.00046575,120]
[356511104,1742590791426,-500.0,0.00046575,120]
[356511105,1742590791451,-500.0,0.00046575,120]
[356511106,1742590791479,-538.99979806,0.00046575,120]
[356511107,1742590791504,-500.0,0.00046575,120]
[356511108,1742590791529,-500.0,0.00046575,120]
[356511109,1742590791553,-500.0,0.00046575,120]
[356511110,1742590791579,-500.0,0.00046575,120]
[356511111,1742590791603,-500.0,0.00046575,120]
[356511112,1742590791628,-500.0,0.00046575,120]
[356511113,1742590791652,-526.52733611,0.00046575,120]
[356511114,1742590791676,-500.0,0.00046575,120]
[356511115,1742590791700,-500.0,0.00046575,120]
[356511116,1742590791724,-830.958807,0.00046575,120]
[356511117,1742590791749,-500.0,0.00046575,120]
[356511118,1742590791772,-554.83,0.00046575,120]
[356511119,1742590791797,-1041.23,0.00046575,120]
[356511120,1742590791822,-500.0,0.00046575,120]
[356511121,1742590791847,-500.0,0.00046575,120]
[356511122,1742590791872,-608.84,0.00046575,120]
[356511123,1742590791896,-511.26029879,0.00046575,120]
[356511124,1742590791921,-500.0,0.00046575,120]
[356511125,1742590791945,-500.0,0.00046575,120]
[356511126,1742590791969,-159.08336,0.00046575,120]
[356511127,1742590791993,-500.0,0.00046575,120]
[356511128,1742590792019,-500.0,0.00046575,120]
[356511129,1742590792045,-500.0,0.00046575,120]
[356511130,1742590792071,-500.0,0.00046575,120]
[356511131,1742590792102,-500.0,0.00046575,120]
[356511132,1742590792128,-5314.63,0.00046575,120]
[356511133,1742590792153,-521.45999854,0.00046575,120]
[356511134,1742590792180,-895.58,0.00046575,120]
[356511135,1742590792206,-523.36197866,0.00046575,120]
[356511136,1742590792231,-160.43033,0.00046575,120]
[356511137,1742590792256,-481.68203243,0.00046575,120]
[356511138,1742590792281,-500.0,0.00046575,120]
[356511139,1742590792306,-500.0,0.00046575,120]
[356511140,1742590792330,-500.0,0.00046575,120]
[356511141,1742590792354,-1411.08,0.00046575,120]
[356511142,1742590792379,-500.0,0.00046575,120]
[356511143,1742590792404,-559.37,0.00046575,120]
[356511144,1742590792428,-500.0,0.00046575,120]
[356511145,1742590792452,-500.0,0.00046575,120]
[356511146,1742590792477,-500.0,0.00046575,120]
[356511147,1742590792692,-500.0,0.00046575,120]
[356511148,1742590792720,-1623.31,0.00046575,120]
[356511149,1742590792746,-500.0,0.00046575,120]
[356511150,1742590792771,-1623.31,0.00046575,120]
[356511151,1742590792796,-1623.31,0.00046575,120]
[356511152,1742590792822,-1623.31,0.00046575,120]
[356511153,1742590792846,-500.0,0.00046575,120]
[356511154,1742590792871,-1623.31,0.00046575,120]
[356511155,1742590792897,-812.98,0.00046575,120]
[356511156,1742590792923,-500.0,0.00046575,120]
[356511157,1742590792949,-761.87,0.00046575,120]
[356511158,1742590792973,-500.0,0.00046575,120]
[356511159,1742590792998,-500.0,0.00046575,120]
[356511160,1742590793022,-500.0,0.00046575,120]
[356511161,1742590793047,-273.43576031,0.00046575,120]
[356511162,1742590793071,-500.0,0.00046575,120]
[356511163,1742590793099,-500.0,0.00046575,120]
[356511164,1742590793125,-500.0,0.00046575,120]
[356511165,1742590793154,-514.28686874,0.00046575,120]
[356511166,1742590793186,-500.0,0.00046575,120]
[356511167,1742590793214,-500.0,0.00046575,120]
[356511168,1742590793243,-500.0,0.00046575,120]
[356511169,1742590793272,-2150.94,0.00046575,120]
[356511170,1742590793299,-680.94,0.00046575,120]
[356511171,1742590793326,-680.94,0.00046575,120]
[356511172,1742590793352,-680.94,0.00046575,120]
[356511173,1742590793378,-589.58,0.00046575,120]
[356511174,1742590793406,-680.94,0.00046575,120]
[356511175,1742590793436,-680.94,0.00046575,120]
[356511176,1742590793461,-5000.0,0.00046575,120]
[356511177,1742590793487,-500.0,0.00046575,120]
[356511178,1742590793513,-500.0,0.00046575,120]
[356511179,1742590793539,-1162.97,0.00046575,120]
[356511180,1742590793565,-712.11,0.00046575,120]
[356511181,1742590793591,-500.0,0.00046575,120]
[356511182,1742590793616,-716.99,0.00046575,120]
[356511183,1742590793642,-560.5,0.00046575,120]
[356511184,1742590793668,-500.0,0.00046575,120]
[356511185,1742590793693,-841.08,0.00046575,120]
[356511186,1742590793719,-500.0,0.00046575,120]
[356511187,1742590793744,-1429.31,0.00046575,120]
[356511188,1742590793770,-500.0,0.00046575,120]
[356511189,1742590793796,-886.88,0.00046575,120]
[356511190,1742590793821,-500.0,0.00046575,120]
[356511191,1742590793846,-500.0,0.00046575,120]
[356511192,1742590793872,-530.32,0.00046575,120]
[356511193,1742590793896,-500.0,0.00046575,120]
[356511194,1742590793921,-3522.85,0.00046575,120]
[356511195,1742590793946,-500.0,0.00046575,120]
[356511196,1742590793972,-500.0,0.00046575,120]
[356511197,1742590793998,-500.0,0.00046575,120]
[356511198,1742590794023,-500.0,0.00046575,120]
[356511199,1742590794047,-810.0,0.00046575,120]
[356511200,1742590794072,-500.0,0.00046575,120]
[356511201,1742590794099,-500.0,0.00046575,120]
[356511202,1742590794124,-500.0,0.00046575,120]
[356511203,1742590794149,-633.52,0.00046575,120]
[356511204,1742590794178,-505.66,0.00046575,120]
[356511205,1742590794202,-500.0,0.00046575,120]
[356511206,1742590794227,-506.41,0.00046575,120]
[356511207,1742590794255,-500.0,0.00046575,120]
[356511208,1742590794279,-500.0,0.00046575,120]
[356511209,1742590794305,-1060.43,0.00046575,120]
[356511210,1742590794330,-513.89676324,0.00046575,120]
[356511211,1742590794356,-862.46,0.00046575,120]
[356511212,1742590794381,-2492.21,0.00046575,120]
[356511213,1742590794405,-500.0,0.00046575,120]
[356511214,1742590794429,-500.0,0.00046575,120]
[356511215,1742590794453,-600.23,0.00046575,120]
[356511216,1742590794478,-500.0,0.00046575,120]
[356511217,1742590794503,-500.0,0.00046575,60]
[356511218,1742590794528,-500.0,0.00046575,120]
[356511219,1742590794552,-500.0,0.00046575,120]
[356511220,1742590794577,-664.01,0.00046575,120]
[356511221,1742590794600,-652.73,0.00046575,120]
[356511222,1742590794625,-1441.73,0.00046575,120]
[356511223,1742590794649,-386.755543,0.00046575,120]
[356511224,1742590794672,-500.0,0.00046575,120]
[356511225,1742590794697,-825.49,0.00046575,120]
[356511226,1742590794723,-736.18,0.00046575,120]
[356511227,1742590794747,-500.0,0.00046575,120]
[356511228,1742590794771,-500.0,0.00046575,120]
[356511229,1742590794799,-689.41,0.00046575,120]
[356511230,1742590794826,-500.0,0.00046575,120]
[356511231,1742590794850,-500.0,0.00046575,120]
[356511232,1742590794876,-500.0,0.00046575,120]
[356511233,1742590794901,-554.53602932,0.00046575,120]
[356511234,1742590794927,-581.85,0.00046575,120]
[356511235,1742590794952,-500.0,0.00046575,120]
[356511236,1742590794977,-671.32,0.00046575,120]
[356511237,1742590795002,-648.26,0.00046575,120]
[356511238,1742590795027,-500.0,0.00046575,120]
[356511239,1742590795051,-500.0,0.00046575,120]
[356511240,1742590795077,-500.0,0.00046575,120]
[356511241,1742590795106,-500.0,0.00046575,120]
[356511242,1742590795132,-567.87,0.00046575,120]
[356511243,1742590795156,-500.0,0.00046575,120]
[356511244,1742590795184,-608.44,0.00046575,120]
[356511245,1742590795209,-500.0,0.00046575,120]
[356511246,1742590795233,-500.0,0.00046575,120]
[356511247,1742590795258,-658.05,0.00046575,120]
[356511248,1742590795282,-4374.94,0.00046575,120]
[356511249,1742590795307,-500.0,0.00046575,120]
[356511250,1742590795332,-3896.81,0.00046575,120]
[356511251,1742590795358,-500.0,0.00046575,120]
[356511252,1742590795548,-500.0,0.00046575,120]
[356511253,1742590795574,-500.0,0.00046575,120]
[356511254,1742590795602,-500.0,0.00046575,120]
[356511255,1742590795626,-500.0,0.00046575,120]
[356511256,1742590795651,-616.290313,0.00046575,120]
[356511257,1742590795677,-847.72,0.00046575,120]
[356511258,1742590795703,-1015.21,0.00046575,120]
[356511259,1742590795730,-2407.4,0.00046575,120]
[356511260,1742590795756,-500.0,0.00046575,120]
[356511261,1742590795783,-1413.71,0.00046575,120]
[356511262,1742590795809,-500.0,0.00046575,120]
[356511263,1742590795835,-500.0,0.00046575,120]
[356511264,1742590795861,-500.0,0.00046575,120]
[356511265,1742590795887,-500.0,0.00046575,120]
[356511266,1742590795914,-500.0,0.00046575,120]
[356511267,1742590795940,-775.79,0.00046575,120]
[356511268,1742590795966,-1086.59,0.00046575,120]
[356511269,1742590795993,-500.0,0.00046575,120]
[356511270,1742590796019,-500.0,0.00046575,120]
[356511271,1742590796045,-1133.4,0.00046575,120]
[356511272,1742590796072,-1032.62,0.00046575,120]
[356511273,1742590796101,-500.0,0.00046575,120]
[356511274,1742590796127,-500.0,0.00046575,120]
[356511275,1742590796155,-1504.83,0.00046575,120]
[356511276,1742590796184,-2218.79,0.00046575,120]
[356511277,1742590796209,-1855.87,0.00046575,120]
[356511278,1742590796236,-500.0,0.00046575,120]
[356511279,1742590796263,-500.0,0.00046575,120]
[356511280,1742590796289,-500.0,0.00046575,120]
[356511281,1742590796316,-500.0,0.00046575,120]
[356511282,1742590796344,-828.32,0.00046575,120]
[356511283,1742590796371,-4212.61,0.00046575,120]
[356511284,1742590796398,-1776.45,0.00046575,120]
[356511285,1742590796424,-573.44,0.00046575,120]
[356511286,1742590796450,-500.0,0.00046575,120]
[356511287,1742590796477,-10277.33,0.00046575,120]
[356511288,1742590796504,-536.32752806,0.00046575,120]
[356511289,1742590796529,-500.0,0.00046575,120]
[356511290,1742590796554,-505.02839215,0.00046575,120]
[356511291,1742590796579,-827.23,0.00046575,120]
[356511292,1742590796603,-500.0,0.00046575,120]
[356511293,1742590796628,-1126.9,0.00046575,120]
[356511294,1742590796653,-899.51,0.00046575,120]
[356511295,1742590796678,-1834.73,0.00046575,120]
[356511296,1742590796702,-500.0,0.00046575,120]
[356511297,1742590796726,-257.53071002,0.00046575,120]
[356511299,1742590796750,-500.0,0.00046575,120]
[356511300,1742590796775,-500.0,0.00046575,120]
[356511302,1742590796799,-1042.62,0.00046575,120]
[356511304,1742590796823,-500.0,0.00046575,120]
[356511307,1742590796847,-2370.96,0.00046575,120]
[356511309,1742590796870,-3771.83,0.00046575,120]
[356511311,1742590796894,-500.0,0.00046575,120]
[356511313,1742590796918,-673.02,0.00046575,120]
[356511315,1742590796943,-1010.34,0.00046575,120]
[356511317,1742590796968,-500.0,0.00046575,120]
[356511319,1742590796992,-1229.02,0.00046575,120]
[356511321,1742590797016,-500.0,0.00046575,120]
[356511323,1742590797040,-7320.96,0.00046575,120]
[356511324,1742590797064,-1367.01,0.00046575,120]